Cogmind - Beta 14 @@@ ROGUE MODE // 2024.10.27 @ 21:51:10 Player: Komeiji O. Result: Destroyed by B-60 Warrior with Heavy Mace Performance ------------- Evolutions (6) 3000 Regions Visited (21) 4200 Robots Destroyed (132) 660 Value Destroyed (5696) 5696 Prototype IDs (29) 580 Alien Tech Used (2) 400 Bonus (2988) 2988 TOTAL SCORE: 17524 Bonus ------- High Alert Combat Kills 268 Follower Combat Kills 1556 Network Hubs Disabled 200 Met Data Miner 300 Met Zhirov 300 Built Enhanced Grunts 300 A7 Reached Mainframe 300 Met R17 at Cetus 500 Friendly Fire -736 Cogmind --------- Core Integrity 0/1150 Matter 123/300 Energy 100/100 System Corruption 17% Temperature Cool (0) Movement Hovering (116) Ox1 Location -4/Factory Parts ------- > --- POWER (2) -------- (None) > --- PROPULSION (6) --- Antigrav System Antigrav System > --- UTILITY (8) ------ Enhanced Optical Array Experimental Optical Array Advanced Targeting Computer Improved System Shield > --- WEAPON (3) ------- Railgun Heavy Gauss Cannon Force Lance > --- INVENTORY (5) ---- Heavy Antimatter Reactor Advanced Energy Well (500) Peak State ------------ > --- POWER ------------ Micro Fission Core Micro Fission Core > --- PROPULSION ------- Antigrav System Antigrav System Antigrav System Antigrav System Antigrav System Gyrokinetic Inverter > --- UTILITY ---------- Improved Heat Sink Medium Storage Unit Enhanced Optical Array Advanced Targeting Computer Improved Target Analyzer Improved Hacking Suite Improved System Shield Advanced System Shield > --- WEAPON ----------- Heavy Gauss Cannon Heavy Gauss Cannon Power Maul > --- INVENTORY -------- Heavy Antimatter Reactor Advanced Energy Well ECM Suite Hypervelocity Gauss Rifle KE Penetrator Railgun Heavy Gauss Cannon Heavy Gauss Cannon Maul [Rating: 104] Favorites ----------- Power Light Deuterium Engine Engine Light Deuterium Engine Power Core Micro Fission Core Reactor Heavy Antimatter Reactor Propulsion Aerolev Unit Treads Improved Treads Wheel Wheel Hover Unit Aerolev Unit Flight Unit Improved VTOL Module Utility Medium Storage Unit Device Seismic Detector Storage Medium Storage Unit Processor Enhanced Optical Array Hackware Improved Hacking Suite Protection Light Armor Plating Weapon Power Sword Energy Gun Precision Beam Rifle Energy Cannon Beam Cannon Ballistic Gun Assault Rifle Ballistic Cannon Heavy Gauss Cannon Launcher Long-range Missile Launcher Special Weapon Mining Laser Impact Weapon Heavy Flail Slashing Weapon Power Sword Piercing Weapon Heavy Pick Special Melee Weapon Advanced Datajack Build | -11 -10 -10 -10 -9 -8 -7 -7 -7 -7 -6 -6 -6 -6 -6 -6 -5 -5 -5 -5 -4 -4 ------- Run | Yrd Mat Min Exi Min Mat Fac Low Low Dat Pro Fac Ext Cet Arc Hub Fac Upp Upp Zhi Pro Fac Slots Evolved 12 | . . . . . 4 2 . . . . 2 . . . . 2 . . . . 2 Power 1 | . . . . . . . . . . . . . . . . . . . . . 1 Propulsion 4 | . . . . . 1 1 . . . . . . . . . 1 . . . . 1 Utility 6 | . . . . . 2 1 . . . . 2 . . . . 1 . . . . . Weapon 1 | . . . . . 1 . . . . . . . . . . . . . . . . Parts Attached 308 | 7 18 1 . 1 51 24 6 1 . 2 44 16 9 12 6 39 3 . 9 43 16 Power 24 | 1 3 . . . 2 3 . . . . 2 1 . 2 1 2 . . 1 4 2 Engine 13 | 1 3 . . . 1 3 . . . . 1 1 . 1 1 1 . . . . . Core 7 | . . . . . 1 . . . . . 1 . . 1 . 1 . . . 2 1 Reactor 4 | . . . . . . . . . . . . . . . . . . . 1 2 1 Propulsion 61 | 2 5 . . . 8 4 1 . . . 9 1 1 4 1 14 . . . 8 3 Treads 9 | . 2 . . . 6 . . . . . . . . 1 . . . . . . . Leg . | . . . . . . . . . . . . . . . . . . . . . . Wheel 7 | 2 3 . . . . . . . . . . . . . . . . . . 2 . Hover 44 | . . . . . 1 4 1 . . . 9 1 1 3 1 14 . . . 6 3 Flight 1 | . . . . . 1 . . . . . . . . . . . . . . . . Utility 106 | 2 3 1 . . 22 11 . . . 2 19 6 3 2 1 12 1 . 5 12 4 Device 51 | 1 . 1 . . 13 6 . . . 1 7 2 . . 1 10 1 . 1 6 1 Storage 11 | 1 2 . . . 2 1 . . . . . . . . . 1 . . 3 1 . Processor 9 | . . . . . . 1 . . . . 2 1 . . . . . . . 3 2 Hackware 10 | . . . . . 1 1 . . . . 4 . 2 1 . . . . . . 1 Protection 25 | . 1 . . . 6 2 . . . 1 6 3 1 1 . 1 . . 1 2 . Artifact . | . . . . . . . . . . . . . . . . . . . . . . Weapon 117 | 2 7 . . 1 19 6 5 1 . . 14 8 5 4 3 11 2 . 3 19 7 Energy Gun 7 | . . . . . 3 1 . . . . . . . . . 2 . . . 1 . Energy Cannon 5 | . . . . . 4 . . . . . . . . . . 1 . . . . . Ballistic Gun 37 | 2 6 . . . 4 2 2 1 . . 6 4 1 3 2 1 . . . 2 1 Ballistic Cannon 11 | . . . . . . . . . . . . . . . . . . . . 9 2 Launcher 14 | . . . . 1 1 . 2 . . . . 3 2 . . 1 1 . . 3 . Special Weapon 6 | . 1 . . . 5 . . . . . . . . . . . . . . . . Impact Weapon 7 | . . . . . . 2 1 . . . . . . . . . . . . 2 2 Slashing Weapon 24 | . . . . . 2 1 . . . . 5 1 2 1 1 5 1 . 3 2 . Piercing Weapon 5 | . . . . . . . . . . . 3 . . . . . . . . . 2 Special Melee Weapon 1 | . . . . . . . . . . . . . . . . 1 . . . . . Unidentified Prototypes 13 | . . . . . 5 2 . . . . . . . . . 1 . . 5 . . Parts Lost 58 | . 3 . . . 2 1 . . . . 4 . 3 2 1 9 . . . 18 15 Power 6 | . . . . . . 1 . . . . 1 . . 1 . 1 . . . 1 1 Propulsion 22 | . 2 . . . . . . . . . 1 . 2 1 1 3 . . . 6 6 Utility 20 | . . . . . 1 . . . . . 2 . . . . 4 . . . 6 7 Weapon 10 | . 1 . . . 1 . . . . . . . 1 . . 1 . . . 5 1 Highest Loss Streak 6 | . 2 . . . 1 1 . . . . 2 . 3 2 1 3 . . . 6 5 To Critical Strikes . | . . . . . . . . . . . . . . . . . . . . . . Average Slot Usage (%) 93 | . 99 100 100 100 99 99 100 100 100 100 97 93 88 84 100 93 88 88 78 68 73 Engine 5 | . 14 14 14 14 6 6 7 7 7 7 3 . 6 2 6 3 . . . . . Core 1 | . . . . . 2 . . . . . 2 5 . 3 . 1 5 5 1 1 7 Treads 9 | . 17 28 28 28 26 . . . . . . . . . . . . . . . . Hover 15 | . . . . . . 29 30 30 30 30 25 20 17 20 26 25 23 23 23 17 19 Device 9 | . 10 10 14 14 10 9 7 7 7 12 12 5 3 . 5 8 11 11 6 6 4 Storage 8 | . 14 14 14 14 9 7 7 7 7 7 6 6 6 6 6 6 5 5 6 5 1 Processor 5 | . . . . . . 4 7 7 7 7 13 13 13 13 13 5 5 5 5 5 19 Hackware 8 | . . . . . 7 7 7 7 7 7 8 6 17 16 20 17 17 17 17 13 8 Protection 4 | . 3 3 . . 9 7 7 7 7 2 4 13 4 6 . 3 . . 1 1 . Energy Gun 1 | . . . . . 8 5 . . . . . . . . . 1 5 5 . . . Ballistic Gun 9 | . 23 28 28 20 5 9 14 15 15 15 7 5 3 3 7 1 . . . . . Impact Weapon 1 | . . . . . . 6 7 7 7 7 . . . . . . . . . . 2 Slashing Weapon 4 | . . . . . 4 1 . . . . 6 12 12 11 11 9 9 11 8 7 . Peak Build Rating 104 | 7 11 11 11 12 34 46 46 46 46 46 68 71 74 68 68 93 93 92 93 95 104 Average Rating 46 | 5 8 11 11 11 25 42 45 46 46 44 57 69 68 58 66 82 92 92 86 67 78 On Entrance 49 | . 7 11 11 11 12 30 46 45 46 46 46 66 71 59 68 66 87 92 92 93 87 Naked Turns . | . . . . . . . . . . . . . . . . . . . . . . Heaviest Build 72 | 13 32 32 30 32 65 62 34 31 31 31 39 39 38 39 34 44 42 38 56 72 51 Greatest Support 66 | 26 46 46 46 46 66 65 32 32 32 32 37 38 38 36 34 53 51 51 51 55 66 Greatest Overweight (x) 7 | . . . . . . 1 1 . . . 1 1 1 3 . 1 . . 1 7 1 Average Overweight (x) . | . . . . . . . . . . . . . . . . . . . . . . Largest Inventory Capacity 20 | 8 15 15 15 15 20 20 10 10 10 10 10 10 10 10 10 10 10 10 10 10 10 Average Capacity 11 | 7 9 15 15 15 19 10 10 10 10 10 10 10 10 10 10 10 10 10 10 10 6 Most Carried 20 | 6 15 15 15 15 20 20 10 10 10 10 10 10 10 10 10 10 10 10 10 10 10 Average Carried 11 | 3 9 15 14 15 18 10 10 10 10 10 9 9 9 9 9 9 10 10 9 8 5 Final Capacity 20 | 8 15 15 15 15 20 10 10 10 10 10 10 10 10 10 10 10 10 10 10 10 5 Final Carried 20 | 6 15 15 15 15 20 10 10 10 10 10 10 10 9 10 9 10 10 10 10 10 2 Class Distribution -------------------- 54% | Mutant 31% | Hacker-Mutant 6% | Tank 3% | Commander-Mutant Dominant Class ---------------- Mutant | -10/Materials Mutant | -10/Mines Mutant | -10/Exiles Mutant | -9/Mines Mutant | -8/Materials Mutant | -7/Factory Mutant | -7/Lower Caves Mutant | -7/Lower Caves Mutant | -7/Data Miner Mutant | -6/Proximity Caves Mutant | -6/Factory Commander-Mutant | -6/Extension Hacker-Mutant | -6/Cetus Commander-Mutant | -6/Archives Hacker-Mutant | -6/Hub_04(d) Hacker-Mutant | -5/Factory Hacker-Mutant | -5/Upper Caves Hacker-Mutant | -5/Upper Caves Hacker-Mutant | -5/Zhirov Hacker-Mutant | -4/Proximity Caves Scavenger-Mutant | -4/Factory Resources | -11 -10 -10 -10 -9 -8 -7 -7 -7 -7 -6 -6 -6 -6 -6 -6 -5 -5 -5 -5 -4 -4 ----------- Run | Yrd Mat Min Exi Min Mat Fac Low Low Dat Pro Fac Ext Cet Arc Hub Fac Upp Upp Zhi Pro Fac Matter Collected 5232 | 260 410 97 . . 652 193 247 20 . 1 536 410 27 375 131 421 79 107 111 990 165 Remotely . | . . . . . . . . . . . . . . . . . . . . . . Salvage Created 5314 | 37 510 . . . 940 268 384 . . . 609 468 58 93 275 533 22 . 238 599 280 Parts 281 | 4 26 . . . 57 9 13 . . . 50 28 5 9 13 27 1 . 4 18 17 Haulers Intercepted 2 | . . . . . 2 . . . . . . . . . . . . . . . . Recyclers Shooed 1 | . 1 . . . . . . . . . . . . . . . . . . . . Parts Field Recycled . | . . . . . . . . . . . . . . . . . . . . . . Retrieved Matter . | . . . . . . . . . . . . . . . . . . . . . . Parts Self-Destructed 50 | . . . . . . . 10 2 . . . . . . . . 1 . 3 34 . Prevented 10 | . . . . . . . 3 6 . . . . . . . . . . . 1 . Kills | -11 -10 -10 -10 -9 -8 -7 -7 -7 -7 -6 -6 -6 -6 -6 -6 -5 -5 -5 -5 -4 -4 ------- Run | Yrd Mat Min Exi Min Mat Fac Low Low Dat Pro Fac Ext Cet Arc Hub Fac Upp Upp Zhi Pro Fac Combat Hostiles Destroyed 100 | . 13 . . . 19 4 7 . . . 6 12 2 . 3 10 3 . . 15 6 Melee 30 | . . . . . 2 1 1 . . . 6 4 . . 2 7 . . . 3 4 Guns 31 | . 13 . . . 9 . 3 . . . . 3 . . . 1 . . . 1 1 Cannons 12 | . . . . . 5 . . . . . . . . . . . . . . 6 1 AOE 20 | . . . . . 2 . 1 . . . . 5 2 . . 2 3 . . 5 . Classes Destroyed 15 | 1 2 . . . 7 2 . . . . 2 . . . . . . . . 1 . Worker 3 | . . . . . 2 1 . . . . . . . . . . . . . . . Builder 4 | . . . . . 2 1 . . . . . . . . 1 . . . . . . Tunneler 4 | 2 . . . . . . . . . . 2 . . . . . . . . . . Hauler 2 | . . . . . 2 . . . . . . . . . . . . . . . . Recycler 1 | . . . . . . . . . . . 1 . . . . . . . . . . Minesweeper 1 | . . . . . . . . . . . . . . . . . . . . 1 . Operator 9 | . . . . . 1 1 . . . . 3 1 . 3 . . . . . . . Watcher 6 | . . . . . . 1 . . . . 1 . 2 . 2 . . . . . . Swarmer 17 | . 3 . . . 3 . . . . . . 6 . . . . 3 . . 1 1 Grunt 44 | . 10 . . . 9 3 5 . . . . 3 . . 1 2 . . . 10 1 Brawler 2 | . . . . . 1 . 1 . . . . . . . . . . . . . . Duelist 1 | . . . . . . 1 . . . . . . . . . . . . . . . Sentry 17 | . . . . . 4 . . . . . 3 4 . . 2 3 . . . 1 . Hunter 6 | . . . . . 2 . 1 . . . 1 . . . . . . . . 2 . Programmer 13 | . . . . . . . . . . . 2 . . . 1 5 . . . 1 4 Cetus Guard 2 | . . . . . . . . . . . . . 2 . . . . . . . . Best Kill Streak 5 | 1 3 . . . 5 4 4 . . . 1 4 3 2 4 2 3 . . 2 5 Combat Bots Only 5 | . 3 . . . 3 4 4 . . . 1 4 2 . 2 2 3 . . 2 5 Max Kills in Single Turn 4 | 1 1 . . . 3 1 1 . . . 1 4 1 1 3 1 2 . . 2 1 Gunslinging . | . . . . . . . . . . . . . . . . . . . . . . Exploded 3 | . . . . . 2 . 1 . . . . 3 1 . . 1 2 . . 2 . Melee 1 | . . . . . 1 1 1 . . . 1 1 . . 1 1 . . . 1 1 Uniques/NPCs Destroyed . | . . . . . . . . . . . . . . . . . . . . . . Combat | -11 -10 -10 -10 -9 -8 -7 -7 -7 -7 -6 -6 -6 -6 -6 -6 -5 -5 -5 -5 -4 -4 -------- Run | Yrd Mat Min Exi Min Mat Fac Low Low Dat Pro Fac Ext Cet Arc Hub Fac Upp Upp Zhi Pro Fac Hostile Shots Fired 903 | . 76 . . . 84 11 28 . . 20 102 91 26 22 20 90 3 28 . 129 173 Missed 343 | . 12 . . . 24 2 6 . . 13 55 33 8 8 10 30 3 15 . 53 71 Damage Taken 10424 | . 765 . . . 886 140 377 . . 135 659 499 371 319 265 1459 . 256 . 2096 2197 Core 2621 | . 118 . . . 113 . 29 . . 28 98 81 80 47 20 284 . 21 . 546 1156 Absorbed by Shields 193 | . . . . . . . . . . . . 88 105 . . . . . . . . Redirected to Shielding 79 | . . . . . . . . . . . . 79 . . . . . . . . . Ignored by Resistances 28 | . . . . . . . 20 . . 8 . . . . . . . . . . . Regen/Repaired (Parts) 247 | . . . . . 34 . . . . . 39 . . . . 174 . . . . . Core Remaining (%) 65 | 100 . . . 52 79 . . . . 91 . . . . 61 . . . . 9 . Volleys Fired 282 | 4 59 . . . 58 4 13 . . . 22 20 15 3 8 15 4 1 . 38 18 Largest 3 | 2 2 . . . 3 2 2 . . . 2 2 1 1 2 2 1 1 . 3 2 Hottest 184 | 40 100 . . . 184 124 67 . . . 66 66 43 33 66 108 43 60 . 183 122 Shots Fired 508 | 8 112 . . . 146 8 26 . . . 28 23 15 3 13 18 4 2 . 69 33 Gun 324 | 8 106 . . . 96 8 24 . . . 28 12 3 3 13 9 . 2 . 9 3 Cannon 117 | . . . . . 41 . . . . . . . . . . 3 . . . 43 30 Launcher 55 | . . . . . 3 . 2 . . . . 11 12 . . 6 4 . . 17 . Special 12 | . 6 . . . 6 . . . . . . . . . . . . . . . . Kinetic 330 | 8 106 . . . 38 6 24 . . . 28 12 3 3 13 6 . . . 50 33 Thermal 113 | . 6 . . . 105 2 . . . . . . . . . . . . . . . Explosive 53 | . . . . . 3 . . . . . . 11 12 . . 6 4 . . 17 . Electromagnetic 12 | . . . . . . . 2 . . . . . . . . 6 . 2 . 2 . Robot Hit Streak 18 | 2 12 . . . 12 17 18 . . . 10 4 9 2 3 5 . . . 6 10 Robot Miss Streak 6 | 2 4 . . . 6 . 1 . . . 2 3 3 1 1 2 1 . . 6 2 Penetration Max 2 | . . . . . . . . . . . 1 2 . . . . . . . . 1 Secondary Targets . | . . . . . . . . . . . . . . . . . . . . . . Shots Hit Robots 422 | 3 68 . . . 104 15 22 . . . 38 17 11 7 13 43 2 . 5 41 33 Core Hits 244 | 2 27 2 . . 45 4 11 . . . 22 15 32 1 12 21 3 . 2 36 9 Critical Kills 4 | . . . . . . . . . . . . 3 . . . . . . . 1 . Critical Parts Destroyed 8 | . . . . . . 1 1 . . . 3 2 . . . . . . . 1 . Critical Strikes 40 | . . . . . 2 1 1 . . . 4 6 . 1 1 7 . . . 9 8 Burn 2 | . . . . . 2 . . . . . . . . . . . . . . . . Destroy 11 | . . . . . . . . . . . 3 5 . 1 . . . . . 2 . Blast 11 | . . . . . . . . . . . . . . . . . . . . 6 5 Smash 2 | . . . . . . 1 1 . . . . . . . . . . . . . . Sever 10 | . . . . . . . . . . . . 1 . . 1 7 . . . 1 . Impale 4 | . . . . . . . . . . . 1 . . . . . . . . . 3 Melee Attacks 390 | . . . . . 13 54 12 . . 2 104 15 . 6 17 106 2 5 5 27 22 Impact 71 | . . . . . . 45 12 . . 2 2 . . . . . . . . 2 8 Slashing 251 | . . . . . 13 9 . . . . 51 15 . 6 17 103 2 5 5 25 . Piercing 65 | . . . . . . . . . . . 51 . . . . . . . . . 14 Sneak Attacks 27 | . . . . . 3 3 1 . . . 4 1 . 4 5 4 1 . . 1 . Combat Hostiles 9 | . . . . . . . 1 . . . 2 1 . . 1 4 . . . . . Follow-up Attacks 22 | . . . . . . 2 . . . . 4 3 . 1 1 7 . . . 4 . Damage Inflicted 16891 | 47 864 14 . . 2212 783 567 . . . 1318 1466 1311 431 1318 1761 440 . 429 2641 1289 Guns 2758 | 47 836 . . . 1063 117 322 . . . 116 51 . 20 53 27 . . . 33 73 Cannons 2162 | . . . . . 525 . . . . . . . . . . 88 . . . 744 805 Explosions 5254 | . . . . . 263 . 113 . . . 103 950 1311 . 617 340 296 . . 1261 . Melee 6651 | . . . . . 337 666 132 . . . 1099 465 . 411 648 1306 144 . 429 603 411 Ramming 42 | . 28 14 . . . . . . . . . . . . . . . . . . . Kinetic 3481 | 47 836 . . . 276 83 322 . . . 116 51 . 20 53 22 . . . 777 878 Thermal 1393 | . . . . . 1336 34 . . . . 7 . . . 16 . . . . . . Explosive 4421 | . . . . . 263 . . . . . . 950 1311 . . 340 296 . . 1261 . Electromagnetic 903 | . . . . . . . 113 . . . 96 . . . 601 93 . . . . . Impact 798 | . . . . . . 666 132 . . . . . . . . . . . . . . Slashing 4802 | . . . . . 337 . . . . . 459 465 . 411 648 1306 144 . 429 603 . Piercing 1051 | . . . . . . . . . . . 640 . . . . . . . . . 411 Highest Corruption 17 | . . . . . . . . . . . . . . . 4 4 4 5 5 14 17 Average Corruption 5 | . . . . . . . . . . . . . . . 2 2 4 4 5 10 7 Corruption Purged . | . . . . . . . . . . . . . . . . . . . . . . Corruption Blocked . | . . . . . . . . . . . . . . . . . . . . . . Effects 92 | . . . . . . . . . . . . . . . 5 25 2 5 4 46 5 Message Errors 20 | . . . . . . . . . . . . . . . 1 8 1 1 1 6 2 Matter Fused 22 | . . . . . . . . . . . . . . . 1 7 . 1 3 10 . Heat Flow Errors 7 | . . . . . . . . . . . . . . . 1 1 1 . . 4 . Energy Discharges 15 | . . . . . . . . . . . . . . . . 4 . . . 11 . Parts Fused 2 | . . . . . . . . . . . . . . . . 1 . . . . 1 Data Loss (minor) 5 | . . . . . . . . . . . . . . . . 2 . . . 2 1 Data Loss (major) 5 | . . . . . . . . . . . . . . . . 2 . . . 3 . Misfires 2 | . . . . . . . . . . . . . . . 1 . . 1 . . . Alerts 5 | . . . . . . . . . . . . . . . 1 . . 2 . 1 1 Misdirections 3 | . . . . . . . . . . . . . . . . . . . . 3 . Weapon Failures 6 | . . . . . . . . . . . . . . . . . . . . 6 . Overload Shots . | . . . . . . . . . . . . . . . . . . . . . . Overflow Damage 1556 | . . . . . 50 367 58 . . . 129 83 37 158 69 85 171 . 226 79 44 Projectiles . | . . . . . . . . . . . . . . . . . . . . . . Explosions 263 | . . . . . . . . . . . . 70 37 . 31 2 87 . . 36 . Melee 1293 | . . . . . 50 367 58 . . . 129 13 . 158 38 83 84 . 226 43 44 Knockbacks 9 | . . . . . . 7 1 . . . . . . . . . . . . 1 . Impact 6 | . . . . . . 5 1 . . . . . . . . . . . . . . Kinetic 1 | . . . . . . . . . . . . . . . . . . . . 1 . Secondary 2 | . . . . . . 2 . . . . . . . . . . . . . . . Self-Inflicted Damage 209 | . 7 . . . . . 9 . . . . 38 . . 70 . . . . 85 . Shots 6 | . . . . . . . 1 . . . . 2 . . 1 . . . . 2 . Rammed 8 | . 4 3 . . 1 . . . . . . . . . . . . . . . . Targets Rammed 8 | . 4 3 . . 1 . . . . . . . . . . . . . . . . Kicked . | . . . . . . . . . . . . . . . . . . . . . . Crushed . | . . . . . . . . . . . . . . . . . . . . . . Highest Temperature 345 | . 40 . . . 244 5 15 . . 3 18 69 6 9 272 246 143 46 11 345 335 Average Temperature 68 | . 9 . . . 58 3 5 . . 3 7 16 3 9 129 54 70 19 3 82 143 Received Heat Transfer 1978 | . 357 . . . 288 81 90 . . 24 108 171 18 63 39 144 . 45 . 321 229 Effects 3 | . . . . . . . . . . . . . . . 1 . . . . 2 . Energy Bleed 1 | . . . . . . . . . . . . . . . 1 . . . . . . Interference 2 | . . . . . . . . . . . . . . . . . . . . 2 . Siege Activations . | . . . . . . . . . . . . . . . . . . . . . . Robots Corrupted 7 | . . . . . . 4 2 . . . . . . . 1 . . . . . . Combat Hostiles 6 | . . . . . . 3 2 . . . . . . . 1 . . . . . . Parts Fried 13 | . . . . . . 6 1 . . . . . . . 4 1 . . . 1 . Impact Corruptions 13 | . . . . . . 11 2 . . . . . . . . . . . . . . Robots Melted 1 | . . . . . 1 . . . . . . . . . . . . . . . . Combat Hostiles 1 | . . . . . 1 . . . . . . . . . . . . . . . . Parts Melted 11 | . . . . . 10 . . . . . . 1 . . . . . . . . . Heat Transferred 3184 | . . . . . 3010 74 . . . . 50 . . . 50 . . . . . . Parts Sabotaged . | . . . . . . . . . . . . . . . . . . . . . . Parts Stolen . | . . . . . . . . . . . . . . . . . . . . . . Parts Stripped . | . . . . . . . . . . . . . . . . . . . . . . Power Chain Reactions 1 | . . . . . . . . . . . . . . . 1 . . . . . . Alert | -11 -10 -10 -10 -9 -8 -7 -7 -7 -7 -6 -6 -6 -6 -6 -6 -5 -5 -5 -5 -4 -4 ------- Run | Yrd Mat Min Exi Min Mat Fac Low Low Dat Pro Fac Ext Cet Arc Hub Fac Upp Upp Zhi Pro Fac Peak Influence 838 | 10 405 92 . . 246 204 . . . . 451 252 415 286 737 838 . . . . 406 Initial 321 | . 6 92 . . . 18 . . . . . 39 123 166 100 321 . . . . 25 Average 197 | 3 194 44 . . 101 65 . . . . 150 166 288 247 317 612 . . . . 165 Maximum Alert Level 3 | . 2 . . . 1 1 . . . . 2 1 2 1 3 3 . . . . 2 Low Security (%) 60 | 100 35 100 . 100 84 96 . . . . 72 51 8 20 14 . . . . . 66 Level 1 25 | . 61 . . . 15 3 . . . . 24 48 66 79 70 14 . . . . 27 Level 2 10 | . 3 . . . . . . . . . 3 . 25 . 7 60 . . . . 5 Level 3 3 | . . . . . . . . . . . . . . . 7 25 . . . . . Level 4 . | . . . . . . . . . . . . . . . . . . . . . . Level 5 . | . . . . . . . . . . . . . . . . . . . . . . High Security . | . . . . . . . . . . . . . . . . . . . . . . Max Security . | . . . . . . . . . . . . . . . . . . . . . . Squads Dispatched 29 | . 2 . . . 4 2 . . . 1 6 1 . . 1 8 . . . . 4 Investigation 7 | . . . . . 2 . . . . . 2 1 . . . 2 . . . . . Extermination 8 | . . . . . . 1 . . . . 2 . . . 1 3 . . . . 1 Reinforcement 9 | . 2 . . . 2 1 . . . . 2 . . . . 2 . . . . . Assault 2 | . . . . . . . . . . 1 . . . . . 1 . . . . . Garrison 3 | . . . . . . . . . . . . . . . . . . . . . 3 Intercept . | . . . . . . . . . . . . . . . . . . . . . . Searches Triggered . | . . . . . . . . . . . . . . . . . . . . . . Data Miner Redirects 4 | . . . . . . . . . . . 1 1 . . . 2 . . . . . Construction Impeded 3 | . . . . . 1 . . . . . 1 . . . . 1 . . . . . Haulers Reinforced 1 | . . . . . . . . . . . . . . . . 1 . . . . . Active Scanning Responses . | . . . . . . . . . . . . . . . . . . . . . . Cargo Convoy Interrupts . | . . . . . . . . . . . . . . . . . . . . . . Stealth | -11 -10 -10 -10 -9 -8 -7 -7 -7 -7 -6 -6 -6 -6 -6 -6 -5 -5 -5 -5 -4 -4 --------- Run | Yrd Mat Min Exi Min Mat Fac Low Low Dat Pro Fac Ext Cet Arc Hub Fac Upp Upp Zhi Pro Fac Distress Signals 20 | . 3 . . . 5 . . . . . 1 2 2 . 2 4 . . . . 1 Communications Jammed . | . . . . . . . . . . . . . . . . . . . . . . Distress Signals . | . . . . . . . . . . . . . . . . . . . . . . Times Spotted 270 | . 33 . . 1 35 14 8 . . 4 24 18 8 4 12 42 3 12 . 23 29 Peak Tracking Total 17 | . 4 . . 1 5 4 3 . . 8 3 4 4 3 4 5 3 8 . 6 17 Tactical Retreats 42 | . 3 . . 1 6 2 1 . . 2 4 1 . . 1 7 . 3 . 5 6 Traps | -11 -10 -10 -10 -9 -8 -7 -7 -7 -7 -6 -6 -6 -6 -6 -6 -5 -5 -5 -5 -4 -4 ------- Run | Yrd Mat Min Exi Min Mat Fac Low Low Dat Pro Fac Ext Cet Arc Hub Fac Upp Upp Zhi Pro Fac Traps Triggered 8 | . 2 . . . . . . . . . 3 1 . . 1 1 . . . . . Indirectly . | . . . . . . . . . . . . . . . . . . . . . . Trap Hack Attempts . | . . . . . . . . . . . . . . . . . . . . . . Triggered . | . . . . . . . . . . . . . . . . . . . . . . Disarmed . | . . . . . . . . . . . . . . . . . . . . . . Reprogrammed . | . . . . . . . . . . . . . . . . . . . . . . Reused 2 | . . . . . . . . . . . . . . . . . . . . 2 . Traps Extracted . | . . . . . . . . . . . . . . . . . . . . . . Installed 4 | . . . . . . . . . . . . . . . . . . . . 4 . Triggered 8 | . . . . . . . . 2 . 1 . . . . . . . 1 . 4 . Most Traps Carried 3 | . . . . . . . . . . . . . . . . . . . . 3 . Machines | -11 -10 -10 -10 -9 -8 -7 -7 -7 -7 -6 -6 -6 -6 -6 -6 -5 -5 -5 -5 -4 -4 ---------- Run | Yrd Mat Min Exi Min Mat Fac Low Low Dat Pro Fac Ext Cet Arc Hub Fac Upp Upp Zhi Pro Fac Machines Disabled 20 | . . . . . . 2 . . . . 4 1 . 1 9 . . . . 2 1 Max in Single Turn 8 | . . . . . . 1 . . . . 4 1 . . 8 . . . . 1 1 Garrison Access 5 | . . . . . . 1 . . . . 3 . . . . 1 . . . . . Network Hub 1 | . . . . . . . . . . . . . . . 1 . . . . . . Machines Repaired . | . . . . . . . . . . . . . . . . . . . . . . Machines Dismantled . | . . . . . . . . . . . . . . . . . . . . . . Machines Sabotaged . | . . . . . . . . . . . . . . . . . . . . . . Overloaded Fab Kills . | . . . . . . . . . . . . . . . . . . . . . . Hacking | -11 -10 -10 -10 -9 -8 -7 -7 -7 -7 -6 -6 -6 -6 -6 -6 -5 -5 -5 -5 -4 -4 --------- Run | Yrd Mat Min Exi Min Mat Fac Low Low Dat Pro Fac Ext Cet Arc Hub Fac Upp Upp Zhi Pro Fac Machines Accessed 98 | . 5 . 4 . 12 19 . 1 4 . 28 4 3 . 4 4 . . 9 . 1 Terminals 52 | . 5 . . . 9 10 . 1 . . 15 4 3 . 4 . . . . . 1 Fabricators 11 | . . . . . . 4 . . . . 6 . . . . 1 . . . . . Repair Stations 5 | . . . . . 1 . . . . . 2 . . . . 2 . . . . . Recycling Units 4 | . . . . . 1 1 . . . . 2 . . . . . . . . . . Scanalyzers 2 | . . . . . 1 1 . . . . . . . . . . . . . . . Garrison Access 7 | . . . . . . 3 . . . . 3 . . . . 1 . . . . . Total Hacks 286 | . 21 . 4 . 33 41 . 1 25 . 68 11 7 . 14 10 . . 48 . 3 Successful 200 | . 11 . 4 . 26 16 . 1 25 . 37 8 2 . 12 9 . . 48 . 1 Failed 86 | . 10 . . . 7 25 . . . . 31 3 5 . 2 1 . . . . 2 Catastrophic 15 | . 1 . . . 1 4 . . . . 6 1 . . . 1 . . . . 1 Database Lockouts . | . . . . . . . . . . . . . . . . . . . . . . Manual 107 | . 16 . . . 17 24 . . . . 30 6 1 . 11 . . . . . 2 Terminals 146 | . 21 . . . 26 24 . 1 . . 39 11 7 . 14 . . . . . 3 Fabricators 28 | . . . . . . 10 . . . . 16 . . . . 2 . . . . . Repair Stations 13 | . . . . . 2 . . . . . 5 . . . . 6 . . . . . Recycling Units 9 | . . . . . 2 2 . . . . 5 . . . . . . . . . . Scanalyzers 4 | . . . . . 3 1 . . . . . . . . . . . . . . . Garrison Access 9 | . . . . . . 4 . . . . 3 . . . . 2 . . . . . Terminal Hacks 121 | . 5 . 4 . 9 4 . 1 25 . 11 6 2 . 5 . . . 48 . 1 Record 54 | . . . 4 . 1 . . 1 10 . 1 . 1 . . . . . 36 . . Part Schematic 14 | . . . . . 1 . . . 9 . . . . . . . . . 4 . . Robot Schematic 3 | . . . . . . . . . 3 . . . . . . . . . . . . Robot Analysis 4 | . . . . . . . . . . . . . . . . . . . 4 . . Prototype ID Bank 7 | . . . . . . . . . 3 . . . . . . . . . 4 . . Open Door 1 | . . . . . . . . . . . . . 1 . . . . . . . . Level Access Points 1 | . . . . . . . . . . . . . . . 1 . . . . . . Branch Access Points 6 | . 2 . . . 1 1 . . . . 1 1 . . . . . . . . . Emergency Access Points 1 | . . . . . . . . . . . . . . . 1 . . . . . . Terminal Index 1 | . . . . . 1 . . . . . . . . . . . . . . . . Alert Level 4 | . . . . . . . . . . . 3 1 . . . . . . . . . Unreport Threat 10 | . . . . . 4 1 . . . . 2 2 . . 1 . . . . . . Locate Traps 7 | . 1 . . . . 1 . . . . 2 1 . . 1 . . . . . 1 Dispatch Records 1 | . . . . . . . . . . . 1 . . . . . . . . . . Patrol Status 1 | . . . . . 1 . . . . . . . . . . . . . . . . Recall Investigation 1 | . . . . . . . . . . . 1 . . . . . . . . . . Zone Layout 5 | . 2 . . . . 1 . . . . . 1 . . 1 . . . . . . Fabricator Hacks 8 | . . . . . . 1 . . . . 5 . . . . 2 . . . . . Network Status 1 | . . . . . . 1 . . . . . . . . . . . . . . . Load Schematic 4 | . . . . . . . . . . . 3 . . . . 1 . . . . . Build 3 | . . . . . . . . . . . 2 . . . . 1 . . . . . Repair Station Hacks 10 | . . . . . 2 . . . . . 2 . . . . 6 . . . . . Scan Component 5 | . . . . . 1 . . . . . 1 . . . . 3 . . . . . Repair 5 | . . . . . 1 . . . . . 1 . . . . 3 . . . . . Recycling Unit Hacks 3 | . . . . . 1 . . . . . 2 . . . . . . . . . . Report Inventory 2 | . . . . . . . . . . . 2 . . . . . . . . . . Retrieve Components 1 | . . . . . 1 . . . . . . . . . . . . . . . . Scanalyzer 3 | . . . . . 2 1 . . . . . . . . . . . . . . . Insert Component 2 | . . . . . 1 1 . . . . . . . . . . . . . . . Analyze 1 | . . . . . 1 . . . . . . . . . . . . . . . . Garrison Access Hacks 5 | . . . . . . 1 . . . . 3 . . . . 1 . . . . . Seal Access 5 | . . . . . . 1 . . . . 3 . . . . 1 . . . . . Unauthorized Hacks 50 | . 6 . . . 12 9 . . . . 14 2 . . 7 . . . . . . Terminals 41 | . 6 . . . 11 6 . . . . 9 2 . . 7 . . . . . . Track 18 | . 3 . . . 6 2 . . . . 4 1 . . 2 . . . . . . Assimilate 5 | . . . . . 1 1 . . . . 2 . . . 1 . . . . . . Botnet 17 | . 3 . . . 4 3 . . . . 3 1 . . 3 . . . . . . Operators 1 | . . . . . . . . . . . . . . . 1 . . . . . . Fabricators 6 | . . . . . . 3 . . . . 3 . . . . . . . . . . Fabnet 6 | . . . . . . 3 . . . . 3 . . . . . . . . . . Repair Stations . | . . . . . . . . . . . . . . . . . . . . . . Recycling Units 3 | . . . . . 1 . . . . . 2 . . . . . . . . . . Mask 2 | . . . . . . . . . . . 2 . . . . . . . . . . Tunnel 1 | . . . . . 1 . . . . . . . . . . . . . . . . Scanalyzers . | . . . . . . . . . . . . . . . . . . . . . . Garrison Access . | . . . . . . . . . . . . . . . . . . . . . . Data Cores Recovered 3 | . . . . . . . . . . . 2 1 . . . . . . . . . Used 1 | . . . . . . . . . . . . 1 . . . . . . . . . Hacking Detections 68 | . 4 . . . 10 17 . . . . 24 4 2 . 3 3 . . . . 1 Full Trace Events 6 | . . . . . 2 . . . . . 2 1 . . . 1 . . . . . Feedback Events 1 | . . . . . . . . . . . 1 . . . . . . . . . . Hackware Fried 1 | . . . . . . . . . . . 1 . . . . . . . . . . Feedback Blocked . | . . . . . . . . . . . . . . . . . . . . . . Robot Schematics Acquired 3 | . . . . . . . . . 3 . . . . . . . . . . . . Robots Built 2 | . . . . . . . . . . . 2 . . . . . . . . . . Authchips 1 | . . . . . . . . . . . 1 . . . . . . . . . . Time 56 | . . . . . . . . . . . 56 . . . . . . . . . . Total Robot Build Rating 12 | . . . . . . . . . . . 12 . . . . . . . . . . Part Schematics Acquired 14 | . . . . . 1 . . . 9 . . . . . . . . . 4 . . Parts Built 4 | . . . . . . . . . . . 2 . . . . 2 . . . . . Authchips . | . . . . . . . . . . . . . . . . . . . . . . Time 106 | . . . . . . . . . . . 53 . . . . 53 . . . . . Total Part Build Rating 24 | . . . . . . . . . . . 12 . . . . 12 . . . . . Parts Repaired 5 | . . . . . 1 . . . . . 1 . . . . 3 . . . . . Time 153 | . . . . . 26 . . . . . 25 . . . . 102 . . . . . Parts Recycled . | . . . . . . . . . . . . . . . . . . . . . . Recycled Matter . | . . . . . . . . . . . . . . . . . . . . . . Retrieved Matter . | . . . . . . . . . . . . . . . . . . . . . . Retrieved Components 9 | . . . . . 9 . . . . . . . . . . . . . . . . Parts Scanalyzed 1 | . . . . . 1 . . . . . . . . . . . . . . . . Part Schematics Acquired . | . . . . . . . . . . . . . . . . . . . . . . Parts Damaged . | . . . . . . . . . . . . . . . . . . . . . . Bothacking | -11 -10 -10 -10 -9 -8 -7 -7 -7 -7 -6 -6 -6 -6 -6 -6 -5 -5 -5 -5 -4 -4 ------------ Run | Yrd Mat Min Exi Min Mat Fac Low Low Dat Pro Fac Ext Cet Arc Hub Fac Upp Upp Zhi Pro Fac Used RIF Installer . | . . . . . . . . . . . . . . . . . . . . . . Robots Hacked 11 | . . . . . . . . . . . . 2 . 1 1 6 1 . . . . Non-combat . | . . . . . . . . . . . . . . . . . . . . . . Combat 11 | . . . . . . . . . . . . 2 . 1 1 6 1 . . . . Robot Hacks Applied . | . . . . . . . . . . . . . . . . . . . . . . Relay Couplers Released . | . . . . . . . . . . . . . . . . . . . . . . Fabnet Peak Effective % 12 | . . . . . . . . . . 9 9 9 9 9 9 12 12 12 12 3 3 Autooverrided 11 | . . . . . . . . . . . . 2 . 1 1 6 1 . . . . Robots Rewired 8 | . . . . . . . . . . . . 8 . . . . . . . . . Allies Hacked . | . . . . . . . . . . . . . . . . . . . . . . Hacks Repelled . | . . . . . . . . . . . . . . . . . . . . . . Allies | -11 -10 -10 -10 -9 -8 -7 -7 -7 -7 -6 -6 -6 -6 -6 -6 -5 -5 -5 -5 -4 -4 -------- Run | Yrd Mat Min Exi Min Mat Fac Low Low Dat Pro Fac Ext Cet Arc Hub Fac Upp Upp Zhi Pro Fac Total Allies 35 | . . 2 . . 1 1 . . . . 3 13 5 1 2 6 1 . . . . Largest Group 10 | . . 2 2 . 1 1 1 . . . 2 10 7 7 7 2 1 . . . . Highest-Rated Group 664 | . . 41 41 . 10 10 10 . . . 98 408 664 664 518 150 12 . . . . Highest-Rated Ally 159 | . . 31 31 . 10 10 10 . . . 49 159 159 159 96 96 12 . . . . Total Orders 31 | . . . . . . . . . . . . 2 . . 5 . 9 7 . 8 . STAY 4 | . . . . . . . . . . . . 1 . . 3 . . . . . . FOLLOW 3 | . . . . . . . . . . . . 1 . . 2 . . . . . . EXPLORE 12 | . . . . . . . . . . . . . . . . . 5 3 . 4 . RETURN 12 | . . . . . . . . . . . . . . . . . 4 4 . 4 . Ally Attacks 217 | . . . . . . . . . . . 14 49 23 26 29 73 3 . . . . Total Damage 7248 | . . . . . . . . . . . 666 1082 998 995 1095 2365 47 . . . . Kills 46 | . . . . . . . . . . . 8 7 6 3 6 16 . . . . . Allies Corrupted 4 | . . . . . . . . . . . . . . . 4 . . . . . . Allies Melted . | . . . . . . . . . . . . . . . . . . . . . . Intel | -11 -10 -10 -10 -9 -8 -7 -7 -7 -7 -6 -6 -6 -6 -6 -6 -5 -5 -5 -5 -4 -4 ------- Run | Yrd Mat Min Exi Min Mat Fac Low Low Dat Pro Fac Ext Cet Arc Hub Fac Upp Upp Zhi Pro Fac Robot Analysis Total 4 | . . . . . . . . . . . . . . . . . . . 4 . . Derelict Logs Recovered 11 | . . 2 . . . . 1 1 . 2 . . . . . . . 3 . 2 . Drone Launches 10 | . . . . . . . . . . . . . . . . . 2 4 . 4 . Drone Recoveries 10 | . . . . . . . . . . . . . . . . . 2 4 . 4 . Exploration | -11 -10 -10 -10 -9 -8 -7 -7 -7 -7 -6 -6 -6 -6 -6 -6 -5 -5 -5 -5 -4 -4 ------------- Run | Yrd Mat Min Exi Min Mat Fac Low Low Dat Pro Fac Ext Cet Arc Hub Fac Upp Upp Zhi Pro Fac Turns Passed 13604 | 112 1103 818 930 152 1908 1108 293 132 32 291 1806 505 264 162 341 1331 149 213 192 1335 427 Spaces Moved 14903 | 91 605 504 581 93 903 1809 529 343 83 575 2528 576 436 171 380 1618 191 439 299 1630 519 Core 25 | 6 . . . . . . . . . . . . . . . . . . . . 19 Treads 2441 | . 352 504 581 93 903 6 . . . . . . . 2 . . . . . . . Legs . | . . . . . . . . . . . . . . . . . . . . . . Wheels 366 | 85 253 . . . . . . . . . . . . . . . . . . 28 . Hover 12071 | . . . . . . 1803 529 343 83 575 2528 576 436 169 380 1618 191 439 299 1602 500 Flight . | . . . . . . . . . . . . . . . . . . . . . . Fastest Speed 35 | 50 80 160 160 160 155 38 38 38 38 38 38 38 38 43 43 35 45 45 45 45 41 Average Speed 64 | 88 128 160 160 160 158 40 38 38 38 38 40 41 41 62 43 46 45 45 51 59 52 Slowest Speed 240 | 100 160 160 160 160 160 155 98 38 38 38 102 105 106 240 43 108 45 45 102 230 120 Overloaded Moves . | . . . . . . . . . . . . . . . . . . . . . . Propulsion Burnouts . | . . . . . . . . . . . . . . . . . . . . . . Robots Hopped . | . . . . . . . . . . . . . . . . . . . . . . Cave-ins Triggered 2 | . . . . . . . . . . . . . . . . . . . . 1 1 Teleports 1 | . . . . . . . . . . . . . . . . . . . 1 . . Exploration Rate (%) 58 | 4 76 76 92 26 62 54 73 47 70 70 58 66 96 89 32 30 38 68 63 81 15 Regions Visited 21 Branch Regions 15 Pre-discovered Areas 8 | . . 2 . . 1 . . 1 1 . . . . . . . . . 3 . . Known Exits Taken 5 | . 1 . . . . 1 . . . . 1 1 . . 1 . . . . . . Unknown Exits Taken 16 | 1 . 1 1 1 1 . 1 1 1 1 . . 1 1 . 1 1 1 1 1 . Scrap Searched 12 | . . 1 . . . . 5 1 . 1 . . . . . . . 3 . 1 . Spaces Dug 362 | . 6 . . . 9 37 7 . . 2 62 127 . . 2 48 21 3 . 25 13 Terrain Destroyed 1106 | . 6 . . . 31 37 7 . . 2 82 200 123 . 178 107 64 3 . 242 24 Melee 188 | . . . . . 4 37 7 . . 2 62 2 . . 1 48 . 3 . 11 11 Projectile 49 | . 6 . . . 5 . . . . . . . . . 3 1 . . . 21 13 AOE 868 | . . . . . 22 . . . . . 19 198 123 . 174 58 64 . . 210 . Terrain Rammed . | . . . . . . . . . . . . . . . . . . . . . . Walls Destroyed . | . . . . . . . . . . . . . . . . . . . . . . Machines Disabled . | . . . . . . . . . . . . . . . . . . . . . . Actions | -11 -10 -10 -10 -9 -8 -7 -7 -7 -7 -6 -6 -6 -6 -6 -6 -5 -5 -5 -5 -4 -4 --------- Run | Yrd Mat Min Exi Min Mat Fac Low Low Dat Pro Fac Ext Cet Arc Hub Fac Upp Upp Zhi Pro Fac Total 17789 | 111 812 514 582 96 1225 2096 572 343 82 642 3130 794 500 214 522 2047 243 447 328 1898 591 Wait 1554 | 4 89 5 . 3 146 177 9 . . 64 400 87 36 10 105 235 44 5 1 130 4 Move 14882 | 90 604 503 580 92 902 1808 528 342 82 574 2527 575 435 170 379 1617 190 438 298 1629 519 Hop . | . . . . . . . . . . . . . . . . . . . . . . Pick Up 143 | 6 21 1 1 . 27 12 2 . . . 19 1 1 5 4 22 . . 4 12 5 Fast Attach 74 | 7 5 . . . 3 2 . . . . 12 1 2 6 . 11 . . 6 15 4 Attach 65 | . 3 . . . 6 7 . . . . 8 1 2 3 1 8 . . . 16 10 Detach 25 | . . . . . 1 1 . . . . 3 . 1 4 . 1 . . . 12 2 Swap 173 | . 10 1 . 1 43 16 6 1 . 2 24 14 5 3 5 20 3 . 5 12 2 Drop 155 | . 17 1 1 . 25 18 2 . . . 26 5 3 5 4 27 . . 8 8 5 Fire 282 | 4 59 . . . 58 4 13 . . . 22 20 15 3 8 15 4 1 . 38 18 Melee 344 | . . . . . 13 51 12 . . 2 89 12 . 5 16 91 2 3 5 21 22 Ram 2 | . 2 . . . . . . . . . . . . . . . . . . . . Kick . | . . . . . . . . . . . . . . . . . . . . . . Crush 6 | . 2 3 . . 1 . . . . . . . . . . . . . . . . Escape Stasis 13 | . . . . . . . . . . . . 13 . . . . . . . . . Rewire 66 | . . . . . . . . . . . . 65 . . . . . . 1 . . Trap 4 | . . . . . . . . . . . . . . . . . . . . 4 . Miscellaneous 1 | . . . . . . . . . . . . . . . . . . . . 1 . Route ------- -11/Scrapyard -10/Materials (discovered 4 exits: [*Mat x2] / *Min x2) -10/Mines (discovered 4 exits: [*Mat x2] / *Exi / [*Sub]) -10/Exiles (discovered 2 exits: [*Min x2]) -9/Mines -8/Materials (discovered 2 exits: *Fac x2) -7/Factory (discovered 4 exits: Sto x2 / *Low x2) -7/Lower Caves -7/Lower Caves -7/Data Miner -6/Proximity Caves -6/Factory (discovered 8 exits: *Fac x4 / *Low x2 / *Ext x2) -6/Extension (discovered 2 exits: *Fac / *Cet) -6/Cetus (discovered 3 exits: *Fac x2 / [*Arc]) -6/Archives (discovered 3 exits: *Fac / *Hub x2) -6/Hub_04(d) (discovered 4 exits: *Fac x4) -5/Factory -5/Upper Caves -5/Upper Caves (discovered 2 exits: *Fac / *Zhi) -5/Zhirov -4/Proximity Caves -4/Factory (discovered 2 exits: *Res / Upp) History --------- Turn | Location | Event 4 | -11/Scrapyard | Discovered new exit (range 16) 113 | -11/Scrapyard | Entered Materials 306 | -10/Materials | Build established: Mutant 330 | -10/Materials | Identified exit to Mines 506 | -10/Materials | Discovered new exit (range 10) 794 | -10/Materials | Discovered new exit (range 20) 1216 | -10/Materials | Entered Mines 1218 | -10/Mines | Learned location of Recycling (-7) 1223 | -10/Mines | Received a Rocket Launcher from a helpful Derelict 1285 | -10/Mines | Deemed a non-threat by the Exiles lab entrance 1287 | -10/Mines | Discovered new exit (range 5) 1343 | -10/Mines | Discovered new exit (range 6) 1463 | -10/Mines | Found a hidden stash of uninstalled traps 1567 | -10/Mines | Discovered new exit (range 12) 1635 | -10/Mines | Learned location of Zion (-6) 1778 | -10/Mines | Discovered new exit (range 6) 2034 | -10/Mines | Entered Exiles 2034 | -10/Exiles | Found Exiles lab abandoned 2034 | -10/Exiles | Accompanied by 2 allies 2064 | -10/Exiles | Led the pair of lost Derelicts to a safe place 2743 | -10/Exiles | Discovered new exit (range 12) 2945 | -10/Exiles | Discovered new exit (range 14) 2964 | -10/Exiles | Entered Mines 3036 | -9/Mines | Assembled infested the area 3041 | -9/Mines | Assisted by a Guerilla fighting off Assembled 3097 | -9/Mines | Discovered new exit (range 12) 3116 | -9/Mines | Entered Materials 3116 | -8/Materials | Evolved 4 slots: Propulsion x1, Utility x2, Weapon x1 3453 | -8/Materials | Build established: Tank 3591 | -8/Materials | Repaired Lgt. Armor Plating? 4010 | -8/Materials | Build established: Mutant 4097 | -8/Materials | Discovered new exit (range 8) 5004 | -8/Materials | Discovered new exit (range 15) 5024 | -8/Materials | Entered Factory 5024 | -7/Factory | Evolved 2 slots: Propulsion x1, Utility x1 5226 | -7/Factory | Discovered new exit (range 16) 5675 | -7/Factory | Discovered new exit (range 15) 6013 | -7/Factory | Identified exit to Storage 6013 | -7/Factory | Identified exit to Lower Caves 6132 | -7/Factory | Entered Lower Caves 6132 | -7/Lower Caves | Accompanied by 1 ally 6146 | -7/Lower Caves | Learned Factory emergency access door positions 6316 | -7/Lower Caves | Found DRS Beacon 6406 | -7/Lower Caves | Discovered new exit (range 10) 6425 | -7/Lower Caves | Entered another Lower Caves area 6426 | -7/Lower Caves | Encountered a Warlord checkpoint 6468 | -7/Lower Caves | Learned location of Extension (-6) 6479 | -7/Lower Caves | Discovered new exit (range 4) 6557 | -7/Lower Caves | Entered Data Miner 6557 | -7/Data Miner | Discovered new exit (range 6) 6565 | -7/Data Miner | Met Data Miner 6575 | -7/Data Miner | Learned location of Section 7 (-2) 6575 | -7/Data Miner | Acquired the access code to Warlord's prototype stash 6579 | -7/Data Miner | Received God Mode back door access code from Data Miner 6589 | -7/Data Miner | Entered Proximity Caves 6595 | -6/Proximity Caves | Learned 4 Factory zone layouts 6647 | -6/Proximity Caves | Attracted the attention of an 0b10 outpost 6827 | -6/Proximity Caves | Spotted B-75 Beast 6876 | -6/Proximity Caves | Discovered new exit (range 11) 6880 | -6/Proximity Caves | Entered Factory 6880 | -6/Factory | Evolved 2 slots: Utility x2 6881 | -6/Factory | Identified exit to Lower Caves 6886 | -6/Factory | Discovered new exit (range 19) 7097 | -6/Factory | Discovered new exit (range 18) 7168 | -6/Factory | Build established: Hacker-Mutant 7467 | -6/Factory | Fabricated Y-64 Sentinel? 7558 | -6/Factory | Imp. Hacking Suite fried by hacking feedback 7589 | -6/Factory | Spotted B-75 Beast 7847 | -6/Factory | Build established: Mutant 7996 | -6/Factory | Incoming investigation squad redirected 7997 | -6/Factory | Discovered new exit (range 13) 8027 | -6/Factory | Fabricated Linear Gravjet? 8111 | -6/Factory | Discovered new exit (range 12) 8148 | -6/Factory | Identified exit to Extension 8194 | -6/Factory | Repaired Hvy. Pick 8292 | -6/Factory | Discovered new exit (range 12) 8686 | -6/Factory | Entered Extension 8686 | -6/Extension | Accompanied by 1 ally 8758 | -6/Extension | Rescued a captive Derelict 9054 | -6/Extension | Rescued A7 9075 | -6/Extension | Identified exit to Cetus 9087 | -6/Extension | Build established: Commander-Mutant 9143 | -6/Extension | Rescued a captive Derelict 9157 | -6/Extension | Incoming investigation squad redirected 9174 | -6/Extension | Discovered new exit (range 10) 9181 | -6/Extension | Identified exit to Factory 9191 | -6/Extension | Entered Cetus 9191 | -6/Cetus | Accompanied by 2 allies (A7) 9196 | -6/Cetus | Acquired a Cetus Manufacturing Module code from A7 9201 | -6/Cetus | Spotted Cetus Guard 9201 | -6/Cetus | Spotted Cetus Guard 9203 | -6/Cetus | Spotted Cetus Guard 9203 | -6/Cetus | Spotted Cetus Guard 9207 | -6/Cetus | Destroyed Cetus Guard 9213 | -6/Cetus | Allies destroyed Cetus Guard 9214 | -6/Cetus | Destroyed Cetus Guard 9216 | -6/Cetus | Allies destroyed Cetus Guard 9246 | -6/Cetus | Started Cetus Manufacturing Module 9253 | -6/Cetus | Escorted A7 to Cetus Mainframe 9271 | -6/Cetus | Manufactured an Enhanced Grunt 9278 | -6/Cetus | Discovered new exit (range 22) 9296 | -6/Cetus | Manufactured an Enhanced Grunt 9312 | -6/Cetus | Discovered exit to Factory (range 21) 9321 | -6/Cetus | Manufactured an Enhanced Grunt 9346 | -6/Cetus | Manufactured an Enhanced Grunt 9361 | -6/Cetus | Spotted Cetus Guard 9361 | -6/Cetus | Spotted Cetus Guard 9362 | -6/Cetus | Spotted Cetus Guard 9362 | -6/Cetus | Spotted Cetus Guard 9368 | -6/Cetus | Allies destroyed Cetus Guard 9371 | -6/Cetus | Manufactured an Enhanced Grunt 9378 | -6/Cetus | Discovered exit to Factory (range 22) 9382 | -6/Cetus | Allies destroyed Cetus Guard 9389 | -6/Cetus | Allies destroyed Cetus Guard 9389 | -6/Cetus | Allies destroyed Cetus Guard 9413 | -6/Cetus | Lost 3 parts (2n1w) 9420 | -6/Cetus | Met Revision 17 9455 | -6/Cetus | Entered Archives 9455 | -6/Archives | Accompanied by 7 allies (A7) 9460 | -6/Archives | Received a hacking code to weaken MAIN.C 9466 | -6/Archives | Local machine network offline 9480 | -6/Archives | Discovered new exit (range 22) 9486 | -6/Archives | Discovered exit to Factory (range 13) 9498 | -6/Archives | Discovered new exit (range 16) 9617 | -6/Archives | Entered Hub_04(d) 9617 | -6/Hub_04(d) | Accompanied by 5 allies 9873 | -6/Hub_04(d) | Build established: Hacker-Mutant 9916 | -6/Hub_04(d) | Network Hub disabled 9958 | -6/Hub_04(d) | Entered Factory 9958 | -5/Factory | Accompanied by 1 ally 9958 | -5/Factory | Evolved 2 slots: Propulsion x1, Utility x1 9989 | -5/Factory | Lost 4 allies 10013 | -5/Factory | Spotted B-75 Beast 10087 | -5/Factory | Repaired Aerolev Unit 10111 | -5/Factory | Repaired Gravmag System 10196 | -5/Factory | Fabricated Linear Gravjet? 10202 | -5/Factory | Lost 3 parts (1n2u) 10284 | -5/Factory | Local machine network offline 10313 | -5/Factory | Repaired Power Sword? 10521 | -5/Factory | Incoming investigation squad redirected 10558 | -5/Factory | First assault squad dispatched 10578 | -5/Factory | Incoming assault squad redirected 11258 | -5/Factory | Discovered new exit (range 15) 11289 | -5/Factory | Entered Upper Caves 11433 | -5/Upper Caves | Discovered new exit (range 7) 11438 | -5/Upper Caves | Entered another Upper Caves area 11451 | -5/Upper Caves | Discovered new exit (range 7) 11506 | -5/Upper Caves | Learned Factory terminal intel 11528 | -5/Upper Caves | Learned 8 Factory zone layouts 11533 | -5/Upper Caves | Learned location of 1 exit from Factory 11649 | -5/Upper Caves | Discovered new exit (range 2) 11651 | -5/Upper Caves | Entered Zhirov 11651 | -5/Zhirov | Discovered new exit (range 3) 11660 | -5/Zhirov | Met Zhirov 11675 | -5/Zhirov | Learned location of Quarantine (-2) 11681 | -5/Zhirov | Learned location of Testing (-3) 11681 | -5/Zhirov | Learned location of Command (-1) 11690 | -5/Zhirov | Zhirov requested help retrieving the SGEMP Prototype 11736 | -5/Zhirov | Found Alien Artifact 11736 | -5/Zhirov | Identified Integrated Reactor 11736 | -5/Zhirov | Installed Integrated Reactor, increased core energy generation (+10) 11743 | -5/Zhirov | Found Alien Artifact 11743 | -5/Zhirov | Identified Transdimensional Reconstructor 11743 | -5/Zhirov | Warped through subspace 11843 | -5/Zhirov | Entered Proximity Caves 12009 | -4/Proximity Caves | Received a Behemoth hack from an annoying Tinkerer 12165 | -4/Proximity Caves | Spotted B-86 Titan 12294 | -4/Proximity Caves | Crushed by falling debris 12294 | -4/Proximity Caves | System corruption reached 10% 12325 | -4/Proximity Caves | Lost 3 parts (1n1u1w) 12361 | -4/Proximity Caves | Activated DRS Beacon 12377 | -4/Proximity Caves | Attracted the attention of an 0b10 checkpoint 12441 | -4/Proximity Caves | Lost 4 allies 12455 | -4/Proximity Caves | Core integrity fell below 50% 12492 | -4/Proximity Caves | Lost 6 parts (1p2n1u2w) 12657 | -4/Proximity Caves | Core integrity fell below 20% 13101 | -4/Proximity Caves | Learned Research emergency access door positions 13172 | -4/Proximity Caves | Discovered new exit (range 10) 13177 | -4/Proximity Caves | Learned Research security intel 13178 | -4/Proximity Caves | Entered Factory 13178 | -4/Factory | Evolved 2 slots: Power x1, Propulsion x1 13179 | -4/Factory | Identified exit to Upper Caves 13180 | -4/Factory | Identified exit to Research 13181 | -4/Factory | Loaded intel: 26 terminal locations 13263 | -4/Factory | Garrison activated, responded to threat 13351 | -4/Factory | Lost 4 parts (1n2u1w) 13502 | -4/Factory | Lost 5 parts (3n2u) 13518 | -4/Factory | Core integrity fell below 50% 13561 | -4/Factory | Crushed by falling debris 13561 | -4/Factory | System corruption reached 10% 13565 | -4/Factory | Core integrity fell below 20% 13592 | -4/Factory | Lost 4 parts (1p1n2u) 13605 | -4/Factory | Destroyed by B-60 Warrior with Heavy Mace Last Messages --------------- 13561_ System corrupted by crushing effect (+2). 13561_ Adv. Terrain Scan Processor destroyed. 13561_ System corrupted by crushing effect (+4). 13580_ P-70 Sage destroyed. 13582_ System corrupted: Component data lost. 13584_ P-70 Sage destroyed. 13587_ Acquired Antigrav System. 13589_ Acquired 117 matter. 13590_ U-05 Engineer builds a Wall. 13592_ Acquired Antigrav System. 13594_ Slug penetrates G-67 Veteran. 13594_ Slug penetrates Wall. 13597_ Slug penetrates G-67 Veteran. 13598_ The unstable cave ceiling collapses. 13600_ G-67 Veteran destroyed. 13601_ R-10 Processor collects Mic. Fission Core. 13602_ %GIHDWZL %RXAMO=&IH:DON &DUC 13603_ U-05 Engineer builds a Wall. 13604_ R-10 Processor collects Antigrav System. 13604_ Acquired 28 matter. Map ----- +----------------------------------------------------+ | ?????????????????????????????????????????????????? | | ?????????????????????????????????????????????????? | | ?????????????????????????????????????????????????? | | ?????????????????????????????????????????????????? | | ?????????????????????????????????????????????????? | | ?????????????????????????????????????????????????? | | ?????????????????????????????????????????????????? | | ??????????????????????""?????????????????????????? | | ??????????????????????"T?????????????????????????? | | ??????????????????????""?????????????????????????? | | ?????????????????????????????????????????????????? | | ?????????????????????????????????????????????????? | | ?????????????????????????????????????????????????? | | ?????????????????????????????????????????????????? | | ?????????????????????????????????????????????????? | | ?????????????????????????????????????????????????? | | ?????????????????????????????????????????????????? | | ?????????????????????????????????????????????????? | | ?????????????????????????????????????????????????? | | ?????????????????????????????????????????????????? | | ????????????????????????###??????????????????????? | | ????????????""?????????## #??????????????????????? | | ????????????T"?????????###############???????????? | | ????????????""?????????##u !% #???????????? | | ????????????????????????#[b! #???????????? | | ????????????????????????#@ #???????????? | | ????????????????????????#! R #???????????? | | ????????????????????????# #???????????? | | ????????????????????????# #???????????? | | ????????????????????????# ! #???????????? | | ????????????????????????# =%* #???????????? | | ????????????????????????# =! ;#??????????? | | ????????????????????????# %;############ | | ????????????????????????# # | | ????????????????????????# # | | ????????????????????????#######+###### """" """" | | ???????????????????????????#??? ????# """ """" | | ???????????????????????????# ?? ???# """ """" | | ???????????????????????????# ?? ???# """" """" | | ???????????????????????????# ? ??# | | #?# ????????????+ ??# """" """" | | #?# ????????????# ??# """" """" | | """ #?# ????????????+ ?# """" """" | | """ #?# ????????????# ??# """" """" | | """ ########?????######## ?# | | ???? ####+######### | | """ ???? | | """ ???? | | """ ???? | | ???? | +----------------------------------------------------+ Best States ------------- Heat Dissipation 68 Energy Generation 35 Energy Capacity 840 Matter Stores 300 Matter Capacity 300 Sight Range 23 Terrain Scan Range 20 Terrain Scan Density 210 ECM Strength 2 Jamming Range 14 Armor Coverage 300 Resistance: TH 10 Propulsion Shielding 66 Phase Shifting 10 Evasion (%) 67 Targeting Accuracy 16 Target Analysis 6 Recoil Reduction 4 Offensive Hacking 24 Defensive Hacking 26 Authchip Count 1 Item Schematics ----------------- Hcp. Storage Unit | -8/Materials | Hacked Combat Drone Bay | -7/Data Miner | Free Lgt. Regenerative Plating | -7/Data Miner | Free Cld. Cesium-ion Thruster | -7/Data Miner | Free Thermal Defense Suite | -7/Data Miner | Free Prc. Rocket Launcher | -7/Data Miner | Free Linear Gravjet | -7/Data Miner | Free Adv. Shield Generator | -7/Data Miner | Free Tesla Rifle | -7/Data Miner | Free Arm. Leg | -7/Data Miner | Free Assault Drone Bay | -5/Zhirov | Free Exp. Heat Sink | -5/Zhirov | Free Exp. Optical Array | -5/Zhirov | Free Imp. Arc Thrower | -5/Zhirov | Free Robot Schematics ------------------ M-14 Sweeper | -7/Data Miner | Free A-15 Conveyor | -7/Data Miner | Free Y-64 Sentinel | -7/Data Miner | Free Fabricated ------------ Y-64 Sentinel | x2 | -6/Factory | Authchip Linear Gravjet | x2 | -6/Factory Linear Gravjet | x2 | -5/Factory Alien Tech Used ----------------- Integrated Reactor Transdimensional Reconstructor Achievements -------------- Main Advantage Prison Break Project G-00 Revising The Future Subspace Traveler The Science Guy Challenges ------------ None Game ------ Seed ScanSniperRouter Manual? 0 Play Time 05:51:32 Cumulative 120.3 hours Start 2024.10.26 @ 21:20:45 End 2024.10.27 @ 21:51:10 Sessions 11 Manual Loads 0 Difficulty Rogue Special Mode None Game No. 42 Rogue 41 Adventurer 1 Explorer 0 Win Type - Total 2 Types 2/0/0/0/0/0/0/0/0 Lore% 38 Gallery% 52 Achievement% 45 Wizard Run 0 Options --------- Layout 0 ASCII 1 Keyboard 1 Movement Vi Keybinds 0 Fullscreen 2 Font 36/Terminus++ Map View 76x50 Zoom Use 0% Tactical HUD 1 Map Filters NONE Filters NONE Steam 1 RUN: 83c2d243-e9ac-4fe1-94e5-caa5cffd5558